bitfinex-derivatives/quotes_SOLF0:USTF0_20241230
["timestamp","ask_amount","ask_price","bid_price","bid_amount"]
[1735533659364,8.41393523,191.38,191.32,11.41393523]
[1735533659667,2.6191,191.33,191.32,3.0]
[1735533659961,8.41393523,191.36,191.3,8.41393523]
[1735533660161,8.41393523,191.36,191.31,8.70458607]
[1735533660361,8.41393523,191.36,191.3,8.41393523]
[1735533661263,8.41393523,191.34,191.28,11.41393523]
[1735533661767,8.41393523,191.34,191.29,4.60085923]
[1735533661967,8.41393523,191.34,191.28,11.41393523]
[1735533662563,8.41393523,191.34,191.26,8.41393523]
[1735533662767,8.41393523,191.32,191.27,8.70937039]
[1735533662970,8.41393523,191.32,191.26,8.41393523]
[1735533663268,2.6198,191.28,191.27,8.70950792]
[1735533663462,2.6198,191.28,191.27,8.70986525]
[1735533663864,2.6198,191.28,191.27,4.60148714]
[1735533664270,2.6198,191.28,191.24,2.9986]
[1735533664478,13.15271547,191.34,191.24,2.9986]
[1735533664479,2.62,191.27,191.25,8.70980396]
[1735533664769,2.62,191.27,191.26,8.70980396]
[1735533667072,2.62,191.27,191.26,4.60051323]
[1735533667374,2.62,191.27,191.26,8.7080086]
[1735533668174,2.6193,191.32,191.26,8.7080086]
[1735533668375,13.15271547,191.34,191.27,4.60051323]
[1735533668673,13.15271547,191.34,191.23,4.4762]
[1735533668872,13.15271547,191.34,191.24,8.70275198]
[1735533669074,2.6198,191.28,191.25,8.70275198]
[1735533669276,1.5592,191.36,191.23,4.4762]
[1735533669277,1.5592,191.36,191.26,8.70275198]
[1735533669568,1.5592,191.36,191.27,4.59775725]
[1735533669772,2.6195,191.31,191.28,8.7001711]
[1735533669974,1.5592,191.36,191.25,2.6202]
[1735533670168,1.5592,191.36,191.26,8.69758968]
[1735533670373,1.5592,191.36,191.27,8.69758968]
[1735533670574,2.6197,191.29,191.28,4.59495829]
[1735533670876,13.15271547,191.34,191.24,3.1125]
[1735533671076,2.6201,191.26,191.25,8.69932436]
[1735533671969,2.62,191.27,191.25,8.69932436]
[1735533672167,2.62,191.27,191.26,8.69932436]
[1735533672571,13.15271547,191.34,191.26,8.69932436]
[1735533672766,1.5592,191.36,191.23,3.0]
[1735533672767,1.5592,191.36,191.27,8.69886356]
[1735533672969,1.5592,191.36,191.28,4.59505749]
[1735533673179,1.5592,191.36,191.24,2.6204]
[1735533673375,1.5592,191.36,191.25,8.69887055]
[1735533673677,1.5592,191.36,191.26,8.69887055]
[1735533673876,1.5592,191.36,191.27,8.69887055]
[1735533674066,1.5592,191.36,191.28,8.69887055]
[1735533674273,2.6199,191.28,191.23,3.0]
[1735533674472,2.6199,191.28,191.24,8.69975244]
[1735533674669,2.6199,191.28,191.25,8.69975244]
[1735533674879,2.6199,191.28,191.26,8.70052772]
[1735533675078,2.6199,191.28,191.27,4.59656115]
[1735533675877,1.5592,191.36,191.23,3.0]
[1735533676076,2.62,191.27,191.24,8.70153669]
[1735533676276,2.62,191.27,191.25,8.70153669]
[1735533676478,2.62,191.27,191.26,8.70203066]
[1735533677378,1.5592,191.36,191.26,8.70203066]
[1735533677379,2.6199,191.28,191.26,8.70203066]
[1735533677576,1.5592,191.36,191.27,8.70203066]
[1735533677779,42.19952961,191.37,191.28,8.70203066]
[1735533677978,13.15271547,191.37,191.29,8.70203066]
[1735533678182,13.15271547,191.37,191.3,8.70203066]
[1735533678384,13.15271547,191.37,191.28,3.0]
[1735533678578,13.15271547,191.37,191.29,8.69495675]
[1735533678780,13.15271547,191.37,191.3,8.69495675]
[1735533678980,2.6189,191.35,191.31,4.59358736]
[1735533679182,13.15271547,191.37,191.32,4.59374248]
[1735533679381,13.15271547,191.37,191.28,3.0]
[1735533679576,2.6194,191.32,191.29,8.69550676]
[1735533679780,2.6194,191.32,191.3,8.69550676]
[1735533679981,2.6194,191.32,191.31,8.69550676]
[1735533681787,2.6194,191.32,191.31,4.59386597]
[1735533682286,2.6197,191.29,191.28,3.0]
[1735533682488,2.6197,191.29,191.28,11.70753213]
[1735533685188,2.6197,191.29,191.28,3.0]
[1735533685492,2.6197,191.29,191.28,8.71997195]
[1735533685788,2.6201,191.26,191.25,3.0]
[1735533685988,2.6201,191.26,191.25,11.72205232]
[1735533686185,2.6201,191.26,191.25,8.72205232]
[1735533687088,2.6206,191.23,191.21,8.41542981]
[1735533687591,2.6206,191.23,191.22,8.7269009]
[1735533687994,2.6204,191.24,191.22,8.7269009]
[1735533688289,2.6204,191.24,191.21,8.41542981]
[1735533688489,2.6204,191.24,191.23,8.41542981]
[1735533688786,2.6204,191.24,191.23,17.13873431]
[1735533688991,2.6202,191.26,191.23,17.13873431]
[1735533689192,8.41542981,191.3,191.24,8.7233045]
[1735533689388,8.41542981,191.3,191.25,8.7233045]
[1735533689593,2.62,191.27,191.26,8.7233045]
[1735533691389,2.62,191.27,191.26,4.60872922]
[1735533691593,2.62,191.27,191.26,8.72206228]
[1735533693588,2.62,191.27,191.26,4.60794651]
[1735533693784,2.62,191.27,191.26,8.72371501]
[1735533694494,2.62,191.27,191.26,4.60794651]
[1735533694693,2.62,191.27,191.26,8.72284236]
[1735533695195,2.6201,191.26,191.23,11.39542981]
[1735533695391,2.6201,191.26,191.24,8.72470032]
[1735533695594,2.6201,191.26,191.25,8.72470032]
[1735533696797,2.6201,191.26,191.23,11.39542981]
[1735533696997,2.6201,191.26,191.24,8.72499555]
[1735533697201,2.6201,191.26,191.25,8.72499555]
[1735533697792,2.6201,191.26,191.25,4.11540296]
[1735533697998,2.6201,191.26,191.25,8.72481683]
[1735533698699,2.6205,191.23,191.21,8.41542981]
[1735533698898,2.6205,191.23,191.22,8.72753672]
[1735533704499,2.6205,191.23,191.22,4.11665995]
[1735533704700,2.6205,191.23,191.22,8.72603734]
[1735533706398,2.6205,191.23,191.22,8.72357219]
[1735533708602,8.41542981,191.24,191.17,8.41542981]
[1735533708804,8.41542981,191.24,191.18,8.7243296]
[1735533709003,8.41542981,191.24,191.19,8.7243296]
[1735533709203,8.41542981,191.24,191.2,8.7243296]
[1735533709405,8.41542981,191.24,191.21,4.60919786]
[1735533709600,8.41542981,191.24,191.17,8.41542981]
[1735533709794,8.41542981,191.24,191.18,8.72338653]
[1735533710101,8.41542981,191.24,191.19,8.72338653]
[1735533710293,8.41542981,191.24,191.2,4.60871648]
[1735533710497,8.41542981,191.24,191.17,8.41542981]
[1735533710697,3.0325,191.29,191.19,8.41542981]
[1735533710898,8.41542981,191.27,191.2,8.71948424]
[1735533711100,8.41542981,191.27,191.21,8.71948424]
[1735533711306,8.41542981,191.27,191.22,4.60664773]
[1735533711498,8.41542981,191.27,191.19,8.41542981]
[1735533711700,8.41542981,191.27,191.2,8.71573419]
[1735533711904,8.41542981,191.27,191.21,8.71573419]
[1735533712095,8.41542981,191.27,191.22,8.71573419]
[1735533712303,91.11445961,191.28,191.21,8.41542981]
[1735533712599,91.11445961,191.28,191.23,8.41542981]
[1735533712898,93.73435961,191.28,191.24,8.71515436]
[1735533713096,91.11445961,191.28,191.25,4.60434124]
[1735533713602,91.11445961,191.28,191.23,8.41542981]
[1735533713803,91.11445961,191.28,191.24,8.71113537]
[1735533714106,91.11445961,191.28,191.25,8.71113537]
[1735533714403,2.6202,191.26,191.23,8.41542981]
[1735533714604,2.6202,191.26,191.24,8.71152709]
[1735533714901,91.11445961,191.28,191.23,8.41542981]
[1735533715105,2.6204,191.24,191.23,8.41542981]
[1735533715303,91.11445961,191.28,191.23,17.12751427]
[1735533715501,91.11445961,191.28,191.24,8.71208446]
[1735533715700,91.11445961,191.28,191.25,8.71208446]
[1735533715903,2.62,191.27,191.26,4.60268714]
[1735533716899,2.6204,191.24,191.23,8.41542981]
[1735533717204,2.6204,191.24,191.23,8.71262274]
[1735533719296,2.6204,191.24,191.23,17.12805255]
[1735533719497,2.6204,191.24,191.23,17.1295037]
[1735533719810,2.6202,191.26,191.23,17.1295037]
[1735533720008,2.6202,191.26,191.24,8.71407389]
[1735533720208,2.6202,191.26,191.25,8.71407389]
[1735533721505,2.6202,191.26,191.23,8.41542981]
[1735533721712,2.6202,191.25,191.24,8.71058469]
[1735533722210,2.6202,191.25,191.24,8.7126248]
[1735533722508,2.6202,191.25,191.24,8.7131661]
[1735533722910,2.6202,191.25,191.24,4.60261812]
[1735533723312,2.6202,191.25,191.24,8.71445232]
[1735533723513,2.6202,191.25,191.24,4.60261812]
[1735533723916,2.6205,191.23,191.22,2.98]
[1735533724214,2.6205,191.23,191.22,11.69822114]
[1735533724712,2.6205,191.23,191.22,7.5859466]
[1735533725011,2.6205,191.23,191.22,11.6993905]
[1735533727207,91.11445961,191.28,191.22,20.11482031]
[1735533727409,91.11445961,191.28,191.24,8.41542981]
[1735533727607,91.11445961,191.28,191.25,8.7193905]
[1735533727810,8.41542981,191.31,191.26,8.72843315]
[1735533728009,41.1382998,191.33,191.27,8.72843315]
[1735533728315,2.6198,191.29,191.28,8.72843315]
[1735533730910,2.6198,191.29,191.28,8.72853024]
[1735533731309,2.6195,191.3,191.28,8.72875053]
[1735533731508,8.41542981,191.31,191.24,8.41542981]
[1735533731715,8.41542981,191.31,191.25,8.7286912]
[1735533731920,8.41542981,191.31,191.26,8.7286912]
[1735533732108,8.41542981,191.31,191.27,8.7286912]
[1735533732312,8.41542981,191.31,191.28,8.7286912]
[1735533732513,8.41542981,191.31,191.24,8.41542981]
[1735533732816,8.41542981,191.31,191.25,8.7282071]
[1735533733013,8.41542981,191.31,191.26,8.7282071]
[1735533733216,8.41542981,191.31,191.27,8.7282071]
[1735533733416,3.62404547,191.33,191.28,8.7282071]
[1735533733613,3.62404547,191.33,191.29,8.72671258]
[1735533733818,3.62404547,191.33,191.3,8.7261719]
[1735533734018,3.62404547,191.33,191.31,8.7239089]
[1735533734219,6.24314547,191.33,191.32,4.60888199]
[1735533734621,6.24314547,191.33,191.32,8.7225943]
[1735533734821,2.6191,191.33,191.32,8.7225943]
[1735533735010,2.619,191.35,191.32,13.02243568]
[1735533735216,2.619,191.35,191.33,8.72037365]
[1735533735413,2.619,191.35,191.34,4.60700587]
[1735533735617,2.6194,191.31,191.3,13.11292981]
[1735533735820,8.41542981,191.37,191.3,21.82775315]
[1735533736021,8.41542981,191.39,191.32,8.41542981]
[1735533736224,8.41542981,191.39,191.33,8.71482334]
[1735533736416,8.41542981,191.39,191.34,8.71482334]
[1735533736622,2.6185,191.38,191.35,4.98351859]
[1735533736823,8.41542981,191.39,191.35,4.98351859]
[1735533737224,8.41542981,191.39,191.32,8.41542981]
[1735533737520,2.619,191.34,191.33,8.70636963]
[1735533737725,2.619,191.34,191.33,13.68428566]
[1735533739023,2.619,191.34,191.33,9.57751201]
[1735533739819,2.619,191.34,191.33,4.97791603]
[1735533747738,2.6189,191.35,191.33,4.97791603]
[1735533747939,8.41542981,191.41,191.34,8.41542981]
[1735533748138,8.41542981,191.41,191.34,13.39334584]
[1735533748340,8.41542981,191.41,191.34,8.41542981]
[1735533748737,2.6185,191.38,191.36,8.41542981]
[1735533749043,8.41542981,191.41,191.32,2.98]
[1735533749341,8.41542981,191.39,191.33,8.41542981]
[1735533750037,2.6187,191.37,191.34,4.58469181]
[1735533750231,2.6187,191.37,191.34,4.96411903]
[1735533750430,2.6187,191.37,191.33,8.41542981]
[1735533750641,2.6187,191.37,191.34,4.58407658]
[1735533750843,2.6187,191.37,191.33,8.41542981]
[1735533751043,2.6187,191.37,191.34,9.54656172]
[1735533751242,2.6187,191.37,191.34,4.96294139]
[1735533751544,2.6187,191.37,191.35,13.3783712]
[1735533751742,2.6183,191.39,191.35,8.41542981]
[1735533751940,2.6183,191.39,191.37,8.41542981]
[1735533753343,8.41542981,191.42,191.35,8.41542981]
[1735533754539,2.6188,191.36,191.35,8.41542981]
[1735533754835,2.6188,191.36,191.35,13.37793968]
[1735533756034,2.6188,191.36,191.35,4.96250987]
[1735533756235,2.6188,191.36,191.35,17.9627407]
[1735533756439,2.6188,191.36,191.35,13.37793968]
[1735533756639,2.6188,191.36,191.35,17.96318095]
[1735533756839,2.6188,191.36,191.35,13.37793968]
[1735533757343,2.6188,191.36,191.35,17.96408458]
[1735533757544,2.6188,191.36,191.35,13.37793968]
[1735533758144,2.6188,191.36,191.35,17.96490726]
[1735533758345,2.6188,191.36,191.35,13.37793968]
[1735533758544,2.6186,191.38,191.35,17.96341076]
[1735533758739,8.41542981,191.42,191.35,13.37793968]
[1735533758944,8.41542981,191.42,191.36,4.96250987]
[1735533759244,2.6182,191.4,191.35,8.41542981]
[1735533759538,8.41542981,191.42,191.35,8.41542981]
[1735533759944,8.41542981,191.42,191.36,4.96499603]
[1735533760241,8.41542981,191.42,191.35,8.41542981]
[1735533760844,8.41542981,191.42,191.36,4.96529297]
[1735533761245,8.41542981,191.42,191.35,8.41542981]
[1735533761547,2.6185,191.38,191.35,8.41542981]
[1735533761949,2.6185,191.38,191.36,4.96624242]
[1735533762447,2.6185,191.38,191.35,8.41542981]
[1735533763445,2.6185,191.38,191.36,4.96716617]
[1735533763641,2.6185,191.38,191.35,8.41542981]
[1735533764041,8.41542981,191.42,191.35,8.41542981]
[1735533765144,8.41542981,191.42,191.36,4.96826482]
[1735533765554,8.41542981,191.42,191.35,8.41542981]
[1735533765555,2.6187,191.36,191.35,8.41542981]
[1735533765851,2.6187,191.36,191.35,13.00379189]
[1735533766051,2.6187,191.36,191.35,17.97189685]
[1735533767053,2.6187,191.36,191.35,22.06963604]
[1735533768151,2.6187,191.36,191.35,22.06973482]
[1735533768656,2.6187,191.36,191.35,22.07173713]
[1735533769045,2.6187,191.36,191.35,4.96810496]
[1735533769454,2.6191,191.33,191.32,11.39542981]
[1735533769755,2.6191,191.33,191.32,25.0660017]
[1735533771250,2.6191,191.33,191.32,20.96713129]
[1735533771453,2.6191,191.33,191.32,25.07187276]
[1735533773553,2.6191,191.33,191.32,16.65644295]
[1735533773754,2.6191,191.33,191.32,4.97438389]
[1735533773959,2.6191,191.33,191.32,22.10508595]
[1735533774456,2.619,191.34,191.32,22.10440634]
[1735533774657,2.619,191.34,191.33,17.13002245]
[1735533774858,2.619,191.34,191.33,22.10440634]
[1735533778057,2.619,191.34,191.33,22.1138156]
[1735533778357,2.6189,191.35,191.33,22.1138156]
[1735533778551,2.6189,191.35,191.34,13.69838579]
[1735533780559,2.6189,191.35,191.34,9.08949427]
[1735533780762,2.6189,191.35,191.34,13.70154756]
[1735533781556,2.6189,191.35,191.34,9.58643718]
[1735533781763,2.6189,191.35,191.34,4.97438389]
[1735533781961,2.6189,191.35,191.34,0.08198389]
[1735533782261,2.6198,191.28,191.27,8.41542981]
[1735533782452,2.6198,191.28,191.27,17.14898393]
[1735533782650,8.41542981,191.33,191.27,8.41542981]
[1735533782853,2.6197,191.29,191.28,8.73260213]
[1735533783461,8.41542981,191.33,191.28,8.73260213]
[1735533783663,2.6194,191.31,191.29,8.73260213]
[1735533783863,2.6194,191.31,191.3,8.73260213]
[1735533784057,2.6194,191.31,191.3,4.61349308]
[1735533784857,8.41542981,191.33,191.27,8.41542981]
[1735533785053,8.41542981,191.33,191.28,8.72858836]
[1735533785361,8.41542981,191.33,191.29,8.72697166]
[1735533785557,2.6198,191.29,191.27,8.41542981]
[1735533785763,2.6198,191.29,191.28,8.72483034]
[1735533786260,2.6193,191.32,191.28,8.72283485]
[1735533786562,8.41542981,191.33,191.29,8.72283485]
[1735533786763,8.41542981,191.33,191.27,8.41542981]
[1735533786962,8.41542981,191.33,191.28,8.72333115]
[1735533787260,8.41542981,191.33,191.27,8.41542981]
[1735533787461,8.41542981,191.33,191.28,8.72154994]
[1735533787761,2.6198,191.28,191.27,8.41542981]
[1735533788058,2.6198,191.28,191.27,17.13656981]
[1735533789862,2.6198,191.28,191.27,4.60744969]
[1735533790158,2.6196,191.3,191.27,4.60443752]
[1735533790462,8.41542981,191.31,191.25,8.41542981]
[1735533790667,8.41542981,191.31,191.26,4.60425974]
[1735533790969,2.6201,191.26,191.25,8.41542981]
[1735533791165,2.6201,191.26,191.25,17.13118294]
[1735533791862,2.6201,191.26,191.25,8.71575313]
[1735533792164,2.6206,191.22,191.21,8.41542981]
[1735533792358,2.6206,191.22,191.21,17.12735642]
[1735533792556,2.6209,191.2,191.19,8.41542981]
[1735533792755,2.6209,191.2,191.19,17.12777697]
[1735533793459,2.6209,191.2,191.19,13.0183534]
[1735533794161,2.6209,191.2,191.19,8.41542981]
[1735533802665,8.41542981,191.21,191.16,8.41542981]
[1735533802968,8.41542981,191.21,191.15,8.41542981]
[1735533803167,2.6215,191.16,191.15,8.41542981]
[1735533806275,8.41542981,191.22,191.15,8.41542981]
[1735533807470,2.6214,191.17,191.15,8.41542981]
[1735533814789,2.6219,191.13,191.12,1.5921]
[1735533814991,2.6219,191.13,191.12,4.5840859]
[1735533815192,2.6219,191.13,191.12,9.48368014]
[1735533815792,2.622,191.12,191.11,8.41542981]
[1735533815989,2.622,191.12,191.11,13.31591665]
[1735533816591,2.622,191.12,191.11,8.41542981]
[1735533817593,2.622,191.12,191.11,13.31543641]
[1735533818195,2.622,191.12,191.11,8.41542981]
[1735533818999,2.622,191.12,191.11,13.3155176]
[1735533819196,2.622,191.12,191.11,8.41542981]
[1735533819590,2.622,191.12,191.11,13.00028771]
[1735533819895,2.622,191.12,191.11,8.41542981]
[1735533820101,2.622,191.12,191.11,17.90095682]
[1735533822702,2.622,191.12,191.11,13.31611659]
[1735533823403,2.622,191.12,191.11,17.90701853]
[1735533823599,2.622,191.12,191.11,13.31611659]
[1735533823800,2.622,191.12,191.11,4.90068678]
[1735533823999,8.41542981,191.12,191.05,8.41542981]
[1735533824204,2.6227,191.07,191.06,8.6887906]
[1735533824403,2.6227,191.07,191.06,13.5955177]
[1735533825199,8.41542981,191.12,191.06,4.9067271]
[1735533825405,8.41542981,191.16,191.1,8.41542981]
[1735533825602,8.41542981,191.16,191.11,4.59216095]
[1735533825904,8.41542981,191.16,191.1,8.41542981]
[1735533826105,8.41542981,191.16,191.11,4.59212885]
[1735533826296,8.41542981,191.16,191.11,4.90846968]
[1735533826500,2.622,191.13,191.11,4.90846968]
[1735533826699,2.622,191.13,191.1,8.41542981]
[1735533827006,2.622,191.13,191.11,4.5934383]
[1735533827202,2.622,191.13,191.1,8.41542981]
[1735533827404,2.622,191.13,191.11,4.59447782]
[1735533827604,2.622,191.13,191.11,4.91098322]
[1735533827904,2.622,191.13,191.1,8.41542981]
[1735533828104,2.622,191.13,191.11,8.69730445]
[1735533828304,2.622,191.13,191.1,8.41542981]
[1735533828502,2.622,191.12,191.11,8.69841435]
[1735533828699,2.622,191.12,191.11,9.5077573]
[1735533829107,2.622,191.12,191.11,13.61151411]
[1735533829309,2.622,191.12,191.11,9.5077573]
[1735533829505,2.622,191.12,191.11,13.61151411]
[1735533830206,2.622,191.12,191.1,8.41542981]
[1735533831411,2.6219,191.14,191.1,8.41542981]
[1735533832105,2.6219,191.13,191.11,4.60064069]
[1735533832306,2.6219,191.13,191.11,4.91729053]
[1735533832508,2.6219,191.13,191.1,8.41542981]
[1735533832708,2.6219,191.13,191.11,4.60038437]
[1735533832905,2.6219,191.13,191.1,8.41542981]
[1735533833213,2.6219,191.13,191.11,9.51941874]
[1735533833413,2.6219,191.13,191.11,4.91902972]
[1735533833614,2.6219,191.13,191.1,8.41542981]
[1735533833814,2.6219,191.13,191.11,4.60202559]
[1735533834017,2.6219,191.13,191.1,8.41542981]
[1735533834317,2.6219,191.13,191.11,8.71439393]
[1735533834612,3.62669058,191.17,191.12,12.52558935]
[1735533834916,37.58544826,191.23,191.15,8.41542981]
[1735533835114,2.621,191.2,191.17,8.41542981]
[1735533835515,8.41542981,191.25,191.17,8.41542981]
[1735533835717,2.6208,191.21,191.18,13.63685783]
[1735533836019,2.6208,191.21,191.19,9.52559068]
[1735533836215,2.6208,191.21,191.17,8.41542981]
[1735533836405,2.6208,191.21,191.18,8.71984448]
[1735533836610,2.6208,191.21,191.19,4.60685203]
[1735533836810,2.621,191.2,191.17,8.41542981]
[1735533837011,2.621,191.2,191.18,8.71984662]
[1735533837310,2.621,191.2,191.19,4.60685322]
[1735533837509,8.41542981,191.21,191.15,9.94542981]
[1735533837715,8.41542981,191.21,191.16,13.64852907]
[1735533837916,8.41542981,191.23,191.17,17.13815374]
[1735533838111,2.6211,191.19,191.18,13.64852907]
[1735533838613,2.6211,191.19,191.18,4.92580514]
[1735533838819,2.6211,191.19,191.18,13.64885782]
[1735533840113,8.41542981,191.23,191.17,8.41542981]
[1735533840312,2.6212,191.18,191.17,8.41542981]
[1735533840509,2.6212,191.18,191.17,17.13988869]
[1735533840713,2.6212,191.18,191.17,13.65136824]
[1735533840914,2.6212,191.18,191.17,4.92690936]
[1735533841109,2.6212,191.18,191.17,13.65140179]
[1735533841620,2.6212,191.18,191.17,9.04207496]
[1735533841820,2.6212,191.18,191.17,13.65164199]
[1735533842320,2.621,191.2,191.17,13.65164199]
[1735533842521,2.621,191.2,191.18,8.7255149]
[1735533842721,2.621,191.2,191.19,8.7255149]
[1735533842920,2.621,191.2,191.19,13.65242426]
[1735533843317,2.621,191.2,191.19,13.6529831]
[1735533843624,2.6208,191.21,191.19,13.6529831]
[1735533843921,2.6208,191.21,191.2,8.7254842]
[1735533844120,8.41542981,191.25,191.2,8.7254842]
[1735533844322,91.12474036,191.26,191.21,8.7254842]
[1735533844516,91.12474036,191.26,191.22,13.65239356]
[1735533844716,2.6205,191.23,191.22,4.92690936]
[1735533845021,91.12474036,191.26,191.22,8.72315871]
[1735533845211,91.12474036,191.26,191.23,8.72315871]
[1735533845411,2.6204,191.24,191.21,8.41542981]
[1735533845621,2.6204,191.24,191.22,8.7209079]
[1735533845916,2.6204,191.24,191.23,8.7209079]
[1735533846121,2.6204,191.24,191.23,13.64581345]
[1735533847019,2.6204,191.24,191.23,9.03761202]
[1735533847227,2.6204,191.24,191.23,13.64405501]
[1735533847423,2.6204,191.24,191.23,9.53134854]
[1735533850531,2.6204,191.24,191.23,4.92490555]
[1735533850722,2.6204,191.24,191.21,8.41542981]
[1735533850921,2.6204,191.24,191.22,13.6306554]
[1735533851122,2.6204,191.24,191.22,4.9194351]
[1735533851426,2.6204,191.24,191.21,8.41542981]
[1735533851628,2.6204,191.24,191.22,8.70938286]
[1735533851827,2.6204,191.24,191.21,8.41542981]
[1735533852027,2.6204,191.24,191.22,13.62778031]
[1735533852223,2.6204,191.24,191.22,4.91839745]
[1735533852431,2.6204,191.24,191.21,8.41542981]
[1735533852627,2.6204,191.24,191.22,8.707779]
[1735533852928,2.6204,191.24,191.21,8.41542981]
[1735533853223,2.6205,191.23,191.21,8.41542981]
[1735533853424,2.6205,191.23,191.22,9.5172817]
[1735533855530,2.6205,191.23,191.22,4.91715773]
[1735533855830,2.6205,191.23,191.22,9.51537258]
[1735533856126,2.6205,191.23,191.22,4.91715773]
[1735533856430,2.6205,191.23,191.21,8.41542981]
[1735533857126,2.6203,191.25,191.21,11.03612981]
[1735533857324,2.6203,191.25,191.23,8.41542981]
[1735533857726,2.6201,191.27,191.23,8.41542981]
[1735533857929,2.6201,191.27,191.25,8.41542981]
[1735533858328,2.6196,191.3,191.26,4.59372333]
[1735533858629,3.62336077,191.35,191.29,8.41542981]
[1735533858830,2.6193,191.33,191.29,8.41542981]
[1735533859030,2.6193,191.33,191.29,11.39542981]
[1735533859233,3.62336077,191.35,191.31,8.41542981]
[1735533859733,2.6192,191.33,191.31,8.41542981]
[1735533860133,3.62336077,191.35,191.31,8.41542981]
[1735533860134,2.6193,191.32,191.31,8.41542981]
[1735533869133,2.6193,191.32,191.29,12.91912981]
[1735533869435,2.619,191.35,191.31,8.41542981]
[1735533870230,2.619,191.34,191.31,8.41542981]
[1735533871142,2.6192,191.33,191.31,8.41542981]
[1735533871341,8.41542981,191.38,191.31,8.41542981]
[1735533871540,8.41542981,191.36,191.3,1.5419]
[1735533872241,2.6194,191.31,191.3,1.5419]
[1735533873140,8.41542981,191.36,191.29,9.93912981]
[1735533873333,8.41542981,191.34,191.27,11.41542981]
[1735533873834,2.6198,191.28,191.27,11.41542981]
[1735533874236,8.41542981,191.34,191.27,11.41542981]
[1735533874438,2.6195,191.31,191.29,8.41542981]
[1735533880147,2.6195,191.31,191.27,11.41542981]
[1735533880449,2.6196,191.3,191.28,4.90855203]
[1735533880849,2.6196,191.3,191.29,4.90855203]
[1735533881845,8.41542981,191.32,191.25,3.1732]
[1735533882040,2.62,191.27,191.26,4.59339849]
[1735533882247,2.62,191.27,191.26,13.60598639]
[1735533882548,2.62,191.27,191.26,4.91080166]
[1735533882745,2.6203,191.25,191.22,8.41542981]
[1735533882945,2.6203,191.25,191.23,8.69756821]
[1735533883144,2.6203,191.25,191.24,8.69756821]
[1735533883346,2.6203,191.25,191.24,9.50783143]
[1735533883542,2.6203,191.25,191.24,13.6115352]
[1735533883741,2.6203,191.25,191.24,9.50783143]
[1735533884147,2.6203,191.25,191.24,13.61158814]
[1735533884443,2.6203,191.25,191.24,13.61375666]
[1735533886448,2.6203,191.25,191.24,9.50999995]
[1735533886654,8.41542981,191.28,191.22,8.41542981]
[1735533886843,2.6205,191.23,191.22,8.41542981]
[1735533887043,2.6205,191.23,191.22,8.7075041]
[1735533887250,2.6205,191.23,191.22,13.62484033]
[1735533887453,2.6205,191.23,191.22,9.51762662]
[1735533887646,2.6205,191.23,191.22,9.51954968]
[1735533888143,2.6205,191.23,191.22,9.51955631]
[1735533888344,2.6205,191.23,191.22,9.52029898]
[1735533888549,2.6205,191.23,191.22,4.91733623]
[1735533888748,2.6207,191.22,191.2,8.41542981]
[1735533889247,2.6207,191.22,191.21,4.92033298]
[1735533889653,2.6207,191.22,191.18,8.41542981]
[1735533889854,2.6207,191.22,191.19,13.6324073]
[1735533890054,2.6207,191.22,191.2,8.71234503]
[1735533890260,2.6207,191.22,191.18,8.41542981]
[1735533890460,2.6207,191.22,191.19,8.71234304]
[1735533890657,2.6207,191.22,191.2,9.52232943]
[1735533890863,2.6208,191.21,191.2,4.91945958]
[1735533891051,2.6208,191.21,191.18,8.41542981]
[1735533891252,8.41542981,191.24,191.19,8.7115399]
[1735533891455,2.6209,191.2,191.19,4.91960492]
[1735533891657,2.6209,191.2,191.19,9.52126974]
[1735533892463,2.6209,191.2,191.19,4.91960492]
[1735533892766,2.6212,191.18,191.16,8.41542981]
[1735533892959,2.6212,191.18,191.17,4.60124913]
[1735533893158,2.6212,191.18,191.17,9.51953511]
[1735533893357,2.6212,191.18,191.17,4.91828598]
[1735533893562,2.6211,191.19,191.16,8.41542981]
[1735533893759,2.6211,191.19,191.17,4.59980705]
[1735533893957,2.6211,191.19,191.16,8.41542981]
[1735533894167,2.6211,191.19,191.17,4.59980705]
[1735533894369,2.6211,191.19,191.16,8.41542981]
[1735533895270,8.41542981,191.24,191.17,13.61922965]
[1735533895572,8.41542981,191.24,191.18,9.51385196]
[1735533895768,8.41542981,191.24,191.16,8.41542981]
[1735533896668,2.6211,191.19,191.16,8.41542981]